[Event "Karel Janecek Open 2024"]
[Site "Prague"]
[Date "2024.02.28"]
[Round "1.17"]
[White "Toniolo, Samuel"]
[Black "Barbosa, Evandro Amorim"]
[Result "0-1"]
[ECO "B68"]
[WhiteElo "2030"]
[BlackElo "2491"]
[Annotator "TA"]
[PlyCount "94"]
[EventDate "2024.02.22"]
[EventType "swiss"]
[EventCountry "CZE"]
[SourceTitle "playchess.com"]
[Source "ChessBase"]
[SourceQuality "1"]
[TimeControl "40/5400+30:1800+30"]

{[%evp 18,94,53,20,30,30,33,0,9,0,4,13,27,0,0,-7,14,-71,-69,-71,-57,-59,-63,-72,-7,-10,-9,-40,-29,-33,-20,-14,-18,-27,-31,-14,-18,-45,-37,-35,-45,-99,-153,-155,-162,-162,-162,-162,-154,-160,-146,-158,-155,-234,-241,-237,-226,-287,-229,-297,-265,-324,-327,-336,-389,-368,-318,-424,-375,-379,-425,-429,-403,-365,-262,-262,-258,-1125,-341]} 1. e4 {[%emt 0:00:14]} c5 {[%emt 0:01:15]} 2. Nf3 {[%emt 0:00:13]} d6 {[%emt 0:00:26]} 3. d4 {[%emt 0:00:38]} cxd4 {[%emt 0:00:09]} 4. Nxd4 {[%emt 0:00:56]} Nf6 {[%emt 0:00:12]} 5. Nc3 {[%emt 0:00:08]} Nc6 {[%emt 0:00:09]} 6. Bg5 {[%emt 0:02:22]} Bd7 {[%emt 0:00:15]} 7. Qd2 {[%emt 0:00:45]} a6 {[%emt 0:00:12]} 8. O-O-O {[%emt 0:03:54]} e6 {[%emt 0:00:12]} 9. f4 {[%emt 0:01:22]} Be7 {[%emt 0:00:12]} 10. Kb1 {[%emt 0:00:56]} h6 {[%emt 0:00:55]} 11. Bh4 {[%emt 0:01:00]} b5 {[%emt 0:00:22]} 12. a3 {[%emt 0:06:07]} Rb8 {[%emt 0:02:26] The position is equal.} 13. Nf3 {[%emt 0:06:41]} b4 {[%emt 0:00:25]} 14. axb4 {[%emt 0:00:31]} Nxb4 {[%emt 0:00:10]} 15. Bc4 {[%emt 0:07:20]} Bc6 {[%emt 0:05:00]} 16. Rhe1 {[%emt 0:03:20]} Qb6 {[%emt 0:06:13]} (16... O-O $5) 17. Bb3 {[%emt 0:04:59] [#]} (17. e5 $11 dxe5 18. Nxe5) 17... Nxc2 $1 $17 {[%emt 0:04:21]} 18. Qxc2 {[%emt 0:04:30] Nd4 is the strong threat.} Qxb3 {[%emt 0:00:13]} 19. Qxb3 {[%emt 0:01:40]} Rxb3 {[%emt 0:00:08]} 20. Nd4 {[%emt 0:02:13][%csl LRb3,LRc6]} Rb6 {[%emt 0:04:03]} (20... Rxc3 $17 21. Bxf6 Rc4 22. Nxc6 (22. Bxg7 Rg8 $17) 22... Rxc6 (22... gxf6 23. Rc1 $15)) 21. Bf2 $1 $11 {[%emt 0:07:54][%cal Od4e6]} Nd7 {[%emt 0:06:01]} 22. Nd5 {[%emt 0:17:09]} exd5 {[%emt 0:04:27]} 23. exd5 {[%emt 0:00:08]} Ba4 {[%emt 0:05:42]} 24. Rc1 {[%emt 0:06:28]} Kd8 {[%emt 0:16:46] [#] Dodges Rc8+. White must now prevent ...Nc5.} (24... O-O {simplifies} 25. Rxe7 Rfb8 26. Re2 Bb5) 25. Nc6+ {[%emt 0:09:43]} Bxc6 {[%emt 0:06:33]} 26. Bxb6+ {[%emt 0:00:12]} Nxb6 {[%emt 0:00:08]} 27. Rxc6 {[%emt 0:02:03]} Nxd5 {[%emt 0:00:20]} 28. Rxa6 {[%emt 0:00:39]} Re8 {[%emt 0:02:13][%cal Od5c7]} (28... Nxf4 $2 {too greedy.} 29. Ra8+ Kd7 30. Rxh8 $18) 29. Ra8+ {[%emt 0:03:56] Black continues to play with concentration.} ({Better is} 29. Ra7 $1 $15) 29... Kd7 $17 {[%emt 0:00:10]} 30. Rxe8 {[%emt 0:00:11]} Kxe8 {[%emt 0:00:06]} 31. g3 {[%emt 0:00:08]} Kd7 {[%emt 0:00:20]} 32. Kc2 {[%emt 0:00:11]} Bd8 {[%emt 0:04:31]} 33. Kd3 {[%emt 0:00:50]} Bb6 {[%emt 0:00:47]} 34. Ke4 {[%emt 0:00:58]} Nb4 {[%emt 0:00:32]} 35. g4 {[%emt 0:03:02]} (35. Kf3 $17 {was necessary.}) 35... d5+ $19 {[%emt 0:00:31]} 36. Kf3 {[%emt 0:00:15]} Kd6 {[%emt 0:01:44]} 37. h4 {[%emt 0:01:19]} Bd4 {[%emt 0:01:32]} 38. Re2 {[%emt 0:00:53]} Nc6 {[%emt 0:01:45]} 39. h5 {[%emt 0:00:49]} Bf6 {[%emt 0:00:23] Strongly threatening ...Nd4+.} 40. Rg2 {[%emt 0:00:35]} Nd4+ {[%emt 0:01:49]} 41. Ke3 {[%emt 0:30:19]} Ne6 {[%emt 0:30:18]} 42. Kf3 {[%emt 0:01:31]} Kc5 {[%emt 0:00:32]} 43. Rd2 {[%emt 0:00:52]} Kc4 {[%emt 0:01:20]} 44. b3+ {[%emt 0:00:00]} Kc5 $1 {[%emt 0:00:00]} ({Not} 44... Kxb3 45. Rxd5 Bc3 46. Rd7 $11) 45. Ra2 {[%emt 0:00:00]} Bd8 {[%emt 0:00:00]} ({Less strong is} 45... Nd4+ 46. Ke3 $19) 46. Ra7 {[%emt 0:00:00]} Bc7 {[%emt 0:00:00]} 47. Rb7 $2 {[%emt 0:00:00]} (47. f5 Nd4+ 48. Kf2) 47... Bxf4 $2 {[%emt 0:00:00] Weighted Error Value: White=0.35/Black=0.12 (very precise) .  Mistake:       	White=4     	Black=2      Inaccurate:     	White=4     	---        OK:         	White=10    	Black=15     Best:        	White=5     	Black=4      Strong:       	White=1     	Black=1      Brilliant:      	---       	Black=1} (47... Nd4+ 48. Kf2 Nb5 (48... Bxf4 $2 49. Rxf7 Be5 50. Rb7 $19)) 0-1

[Event "Karel Janecek Open 2024"]
[Site "Prague"]
[Date "2024.02.28"]
[Round "1.18"]
[White "Hurtak, Otto"]
[Black "Stoyanov, Tsvetan"]
[Result "0-1"]
[ECO "A22"]
[WhiteElo "1958"]
[BlackElo "2465"]
[Annotator "TA"]
[PlyCount "100"]
[EventDate "2024.02.22"]
[EventType "swiss"]
[EventCountry "CZE"]
[SourceTitle "playchess.com"]
[Source "ChessBase"]
[SourceQuality "1"]
[TimeControl "40/5400+30:1800+30"]

{[%evp 9,100,-8,12,-2,-2,-8,-12,-22,8,25,40,46,47,47,43,37,28,24,41,31,35,29,58,16,0,16,28,0,0,-34,-23,-29,-17,-177,-19,-23,-8,-22,-28,-70,-2,-109,-151,-108,0,0,0,0,0,0,-5,-72,-81,-70,-65,-77,-67,-70,-64,-72,-75,-88,-84,-102,-99,-254,-108,-108,-87,-127,-143,-919,-919,-919,-919,-2178,-2171,-2131,-2131,-29967,-29968,-29974,-29975,-29975,-29972,-29971,-29973,-29977,-29975,-29977,-29978,-29978,-29979]} 1. c4 {[%emt 0:00:05]} e5 {[%emt 0:00:18]} 2. Nc3 {[%emt 0:00:07]} Bb4 {[%emt 0:01:03]} 3. g3 {[%emt 0:01:15]} Nf6 {[%emt 0:00:11]} 4. e4 {[%emt 0:01:16]} O-O {[%emt 0:02:33]} 5. Nge2 {[%emt 0:00:47]} b5 {[%emt 0:04:32]} 6. cxb5 {[%emt 0:02:32]} a6 {[%emt 0:00:43]} 7. Bg2 {[%emt 0:01:58]} axb5 {[%emt 0:01:41]} 8. O-O {[%emt 0:01:43] The position is equal.} Bb7 {[%emt 0:14:32]} 9. d4 {[%emt 0:07:49]} exd4 {[%emt 0:18:12]} 10. Nd5 {[%emt 0:01:17]} Nxd5 {[%emt 0:07:49]} 11. exd5 {[%emt 0:01:44]} Bc5 {[%emt 0:01:09]} 12. Nxd4 {[%emt 0:02:20]} Qf6 {[%emt 0:00:24]} 13. Be3 {[%emt 0:03:20]} Na6 {[%emt 0:00:36]} 14. Rc1 {[%emt 0:06:15]} b4 {[%emt 0:04:03]} 15. Qd2 {[%emt 0:05:59]} Rfe8 {[%emt 0:02:32]} 16. Nb3 {[%emt 0:06:21]} Bxe3 {[%emt 0:01:22]} 17. fxe3 {[%emt 0:00:08]} Qb6 {[%emt 0:02:11]} 18. Rfe1 {[%emt 0:10:31]} Re5 {[%emt 0:03:45]} 19. Kh1 {[%emt 0:04:06]} Rae8 {[%emt 0:01:44][%cal Of7f5]} 20. e4 {[%emt 0:01:17]} c6 {[%emt 0:01:30]} 21. Nd4 $2 {[%emt 0:04:23]} (21. h4 $11 {and White is okay.}) 21... h6 $2 {[%emt 0:16:29]} (21... cxd5 $19 22. Nf3 Rxe4) 22. dxc6 $11 {[%emt 0:09:19]} dxc6 {[%emt 0:00:18] Threatening ...Nc5.} (22... Bxc6 {simplifies} 23. Nxc6 dxc6 24. Qe3 Qa5) 23. Nf5 {[%emt 0:01:27] And now Nd6 would win.} c5 {[%emt 0:01:15][%cal Rb7e4]} 24. Qd6 {[%emt 0:02:58]} Qa5 {[%emt 0:01:59]} (24... Bc6 $15 25. Nd4 Nb8) 25. Rf1 {[%emt 0:05:44]} (25. Qd2 $11 Qb6 (25... Qxa2 26. Nd6 $11) (25... Bxe4 26. Rxe4 Rxe4 27. Bxe4 $11) 26. Nd6) 25... Qxa2 $17 {[%emt 0:01:49][%cal Oa2e6]} (25... Bxe4 $2 26. Bxe4 Rxe4 27. Nxg7 $18) 26. Rcd1 {[%emt 0:04:31][%cal Of5g7]} R5e6 {[%emt 0:04:07]} (26... Qxb2 $2 27. Nxg7 $18) ({Black should play} 26... Bxe4 $17 27. Bxe4 Rxe4) 27. Qf4 $11 {[%emt 0:02:44][%cal Of5g7] Black must now prevent Nxg7!} Bxe4 {[%emt 0:01:30]} 28. Nxh6+ {[%emt 0:01:23]} Rxh6 {[%emt 0:00:22]} 29. Bxe4 {[%emt 0:00:24] aiming for Bd5.} Rf6 $1 $36 {[%emt 0:01:58][%mdl 2048] Black is pushing.} (29... Qxb2 30. Qxf7+ Kh8 31. Qxe8#) 30. Bd5 {[%emt 0:02:15]} (30. Qh4 $1 $11 {remains equal.} Rxf1+ (30... Qxb2 31. Qh7+ Kf8 32. Qh8+ Ke7 33. Qh5 $18) 31. Rxf1) 30... Rxf4 $17 {[%emt 0:02:32]} ({Much weaker is} 30... Qxb2 $6 31. Qc4 Qe2 32. Bxf7+ Kf8 33. Qxe2 Rxe2 34. Bc4 $14) 31. Bxa2 {[%emt 0:00:03]} Rxf1+ {[%emt 0:00:10]} 32. Rxf1 {[%emt 0:00:02][%mdl 4096] Endgame. KRB-KRN} Re7 {[%emt 0:00:16]} 33. Rf5 {[%emt 0:04:19]} Rc7 $1 {[%emt 0:01:39]} 34. Bc4 {[%emt 0:01:37]} Nb8 {[%emt 0:00:01]} 35. Kg2 {[%emt 0:00:51]} g6 {[%emt 0:00:25]} 36. Rd5 {[%emt 0:00:25]} Nd7 {[%emt 0:00:19] Threatens to win with ...Nb6.} 37. Kf3 $2 {[%emt 0:01:49]} (37. Bb5 $17 Nb6 38. Rd8+ Kg7 39. b3) 37... Kg7 {[%emt 0:00:32]} (37... Nb6 $1 $19 {[%cal Rb6c4] is more deadly.} 38. Rd8+ Kg7) 38. Bb5 {[%emt 0:01:21]} Nf6 {[%emt 0:01:27]} 39. Rd6 {[%emt 0:00:51] [#]} c4 $1 {[%emt 0:01:09]} 40. Rc6 {[%emt 0:01:08][%mdl 8192]} (40. Ba4 $17) 40... Rxc6 $19 {[%emt 0:00:16]} 41. Bxc6 {[%emt 0:30:03] KB-KN} b3 {[%emt 0:04:51][%cal Oc4c3] ( -> ...c3!)} 42. Bb5 {[%emt 0:00:00] [#]} c3 $1 {[%emt 0:00:14][%mdl 512]} 43. bxc3 {[%emt 0:00:00] [#]} Nd5 $1 {[%emt 0:00:41]} 44. Bd3 {[%emt 0:00:00]} Nxc3 {[%emt 0:00:15] Black mates.} 45. h4 {[%emt 0:00:00]} b2 {[%emt 0:00:21]} 46. g4 {[%emt 0:00:00]} b1=Q {[%emt 0:00:29]} 47. Bxb1 {[%emt 0:00:00]} Nxb1 {[%emt 0:00:02]} 48. Kf4 {[%emt 0:00:00]} Kf6 {[%emt 0:01:31]} 49. h5 {[%emt 0:00:00]} gxh5 {[%emt 0:00:35]} 50. gxh5 {[%emt 0:00:00]} Nc3 {[%emt 0:00:04] Weighted Error Value: White=0.48/Black=0.16 (very precise) .  Loses game:     	White=1     	---        Mistake:       	White=4     	Black=4      Inaccurate:     	White=5     	Black=1      OK:         	White=9     	Black=15     Best:        	White=4     	Black=4      Strong:       	---       	Black=3} 0-1

[Event "Karel Janecek Open 2024"]
[Site "Prague"]
[Date "2024.02.28"]
[Round "1.19"]
[White "Simacek, Pavel"]
[Black "Bigabylov, Zhuban"]
[Result "1-0"]
[ECO "B30"]
[WhiteElo "2456"]
[BlackElo "1972"]
[Annotator "TA"]
[PlyCount "49"]
[EventDate "2024.02.22"]
[EventType "swiss"]
[EventCountry "CZE"]
[SourceTitle "playchess.com"]
[Source "ChessBase"]
[SourceQuality "1"]
[TimeControl "40/5400+30:1800+30"]

{[%evp 9,49,33,41,28,30,33,57,49,62,54,112,122,158,97,93,87,158,149,183,183,184,136,226,202,224,154,230,238,218,214,362,368,369,243,497,493,486,479,581,607,1369,1324]} 1. e4 {[%emt 0:06:16]} c5 {[%emt 0:00:05]} 2. Nf3 {[%emt 0:00:07]} Nc6 {[%emt 0:00:05]} 3. Nc3 {[%emt 0:00:36]} Nf6 {[%emt 0:00:23][%cal Bg8f6,Bf6d5,Bd5b4][%mdl 32]} 4. Bb5 {[%emt 0:01:06]} a6 {[%emt 0:05:28]} 5. Bxc6 {[%emt 0:00:25]} dxc6 {[%emt 0:00:09]} 6. e5 {[%emt 0:03:53]} Nd5 {[%emt 0:00:11]} 7. Ne4 {[%emt 0:00:08]} Bf5 {[%emt 0:02:43]} 8. Nxc5 {[%emt 0:05:38][%cal Oe1g1] White is slightly better.} Nb4 {[%emt 0:05:13]} 9. d3 {[%emt 0:01:08] Black must now prevent e6.} (9. Nxb7 Qb6 (9... Nxc2+ 10. Qxc2 Bxc2 11. Nxd8 $14) 10. d3 Qxb7 $17) 9... Qd5 {[%emt 0:09:54]} (9... Qa5 10. Nb3 Qc7 (10... Nxd3+ $2 11. Kf1 $18) (10... Nxc2+ $2 11. Ke2 $18) 11. a3 $16) (9... e6 $14 10. Nxb7 Qb6) 10. Be3 $16 {[%emt 0:06:03]} (10. Nxb7 $6 Rb8 $11) 10... b6 {[%emt 0:05:33]} 11. Nb3 {[%emt 0:05:27] Excellent horsemanship.} (11. Na4 $142 {Hoping for a3.} Qa5 12. Nc3 (12. Nxb6 $2 Nxc2+ 13. Kf1 Nxe3+ 14. fxe3 Qxb6 $19)) 11... c5 {[%emt 0:01:45]} 12. O-O {[%emt 0:01:08]} g5 {[%emt 0:02:02]} 13. Nxg5 {[%emt 0:03:13]} f6 {[%emt 0:06:51]} 14. exf6 {[%emt 0:08:50]} exf6 {[%emt 0:01:33] [#]} 15. Ne4 {[%emt 0:00:26]} O-O-O {[%emt 0:06:22]} (15... Bxe4 $16 {might work better.} 16. dxe4 Qxd1 17. Raxd1 Nxc2) 16. Nbd2 $18 {[%emt 0:00:25]} (16. Nxf6 $6 Qf7) 16... Rg8 {[%emt 0:04:21]} 17. f3 {[%emt 0:03:56] aiming for a3.} (17. Nxf6 $2 Qxg2#) 17... Rg6 {[%emt 0:04:16]} (17... Qc6 $16 18. Kh1 Bg6) 18. a3 {[%emt 0:04:26]} Nc6 {[%emt 0:02:42]} 19. b4 {[%emt 0:00:46] Threatens to win with bxc5.} Bh6 {[%emt 0:09:13]} (19... Bh3 {is a better defense.}) 20. Bxh6 {[%emt 0:04:41]} Rxh6 {[%emt 0:04:19]} 21. bxc5 {[%emt 0:00:23]} bxc5 $2 {[%emt 0:05:56]} (21... Bxe4 22. fxe4 (22. Nxe4 f5 $18) 22... Qxc5+ 23. Kh1 Kb7) 22. Nc4 {[%emt 0:01:55] [#] Strongly threatening Nb6+. White is clearly winning.} Qd4+ {[%emt 0:01:49]} 23. Kh1 {[%emt 0:01:21]} Be6 {[%emt 0:05:37]} 24. c3 {[%emt 0:00:54]} Qxd3 {[%emt 0:02:47]} 25. Ncd6+ {[%emt 0:00:10] Weighted Error Value: White=0.19 (very precise) /Black=0.76.  Mistake:       	White=2     	Black=6      Inaccurate:     	White=2     	Black=1      OK:         	White=11    	Black=4      Best:        	White=2     	Black=1} (25. Nxc5 Qxc4 26. Qe1 Bh3 (26... Qxc5 27. Qxe6+ Kc7 28. Rad1 $17) 27. Nxa6 Bxg2+ (27... Qxa6 $2 28. gxh3 Qc4 29. Qf2 $19) 28. Kxg2 Rg8+ $19 (28... Qxa6 $2 29. Qe6+ Kc7 30. Rfd1 $19) (28... Qxa6 $2 29. Qe6+ Kc7 30. Rfd1 $19)) 1-0

[Event "Karel Janecek Open 2024"]
[Site "Prague"]
[Date "2024.02.29"]
[Round "2.1"]
[White "Lever, Erwan"]
[Black "Safarli, Eltaj"]
[Result "0-1"]
[ECO "D85"]
[WhiteElo "2199"]
[BlackElo "2604"]
[Annotator "TA"]
[PlyCount "54"]
[EventDate "2024.02.22"]
[EventType "swiss"]
[EventCountry "CZE"]
[SourceTitle "playchess.com"]
[Source "ChessBase"]
[SourceQuality "1"]
[TimeControl "40/5400+30:1800+30"]

{[%evp 16,54,0,0,31,26,65,25,38,0,-3,-8,0,-14,0,0,29,37,31,11,28,14,9,37,44,35,178,177,164,162,232,-32,-41,-83,-83,-500,-514,-1021,-1024,-29992,-29993]} 1. d4 {[%emt 0:00:19]} Nf6 {[%emt 0:00:05]} 2. c4 {[%emt 0:01:30]} g6 {[%emt 0:01:03]} 3. Nc3 {[%emt 0:00:07]} d5 {[%emt 0:00:04]} 4. cxd5 {[%emt 0:00:22]} Nxd5 {[%emt 0:00:06]} 5. e4 {[%emt 0:00:22]} Nxc3 {[%emt 0:00:04]} 6. bxc3 {[%emt 0:00:05]} Bg7 {[%emt 0:00:03]} 7. Nf3 {[%emt 0:01:19]} O-O {[%emt 0:00:10]} 8. h3 {[%emt 0:00:18]} c5 {[%emt 0:00:15]} 9. Be2 {[%emt 0:00:13]} Nd7 {[%emt 0:05:56]} 10. O-O {[%emt 0:01:49]} Nf6 {[%emt 0:00:05]} 11. Qd3 {[%emt 0:02:37]} (11. dxc5 $2 Nxe4 12. Bb2 Nxc5 $17 (12... Nxc3 13. Qe1 $15)) 11... b6 {[%emt 0:00:34] White has an edge.} 12. d5 {[%emt 0:07:59]} e6 {[%emt 0:02:30]} 13. d6 {[%emt 0:04:16]} Bb7 {[%emt 0:00:37]} 14. e5 {[%emt 0:09:01] Hoping for Bg5.} Nd7 {[%emt 0:02:13]} 15. Bf4 $1 {[%emt 0:09:23]} f6 {[%emt 0:03:34]} 16. Qe3 $36 {[%emt 0:03:52][%mdl 2048] Black is under pressure.} fxe5 {[%emt 0:02:32]} 17. Bg5 {[%emt 0:02:42]} (17. Nxe5 $2 Rxf4 18. Nxg6 (18. Nxd7 $2 Re4 $19) 18... hxg6 $19) 17... Nf6 {[%emt 0:00:31]} 18. Rad1 {[%emt 0:04:29] Against Nd5} (18. Nxe5 Nd5 19. Bxd8 Nxe3 20. fxe3 Raxd8 21. Rxf8+ Rxf8 $19) (18. Qxe5 Qd7 19. Bc4 Rae8 $17 (19... Nd5 20. Qg3 $17)) 18... h6 $1 {[%emt 0:05:32]} 19. Bxh6 {[%emt 0:14:57]} Nd5 {[%emt 0:00:45]} 20. Qd2 {[%emt 0:01:05] And now Bg5 would win.} Qd7 {[%emt 0:14:45] [#]} ({Black should play} 20... Rf5 $14 21. Bd3 Rxf3) 21. Bxg7 $1 $18 {[%emt 0:04:06]} Qxg7 {[%emt 0:00:17]} 22. Ng5 {[%emt 0:01:07]} Nf4 {[%emt 0:00:47]} (22... Qf6 $142) 23. Bg4 $2 {[%emt 0:02:28]} ({White must play} 23. g3 $18 Nxe2+ 24. Qxe2) 23... Qf6 $15 {[%emt 0:01:12]} 24. h4 {[%emt 0:04:12]} Bxg2 {[%emt 0:02:07][%cal Of6h8] White must now prevent ...Qh8!} 25. Bxe6+ $2 {[%emt 0:06:54][%mdl 8192] [#]} Kg7 $1 $19 {[%emt 0:00:50][%cal Of8h8] Threatens to win with ...Rh8!} 26. Rfe1 {[%emt 0:01:25]} (26. Bc4 $142 Rh8 27. Qxf4 exf4 (27... Qxf4 28. Ne6+ Kh6 29. Nxf4 $15) 28. Ne6+ Kh6 (28... Qxe6 29. Bxe6 f3 30. Kh2 $19) 29. Kxg2) 26... Rh8 {[%emt 0:00:53][%cal Of6g5] ( -> ...Qxg5!)} 27. Bc4 {[%emt 0:06:16] [#]} Qxg5 $3 {[%emt 0:00:33][%mdl 512] Weighted Error Value: White=1.13/Black=0.19 (very precise) .  Loses game:     	White=1     	---        Missed win:     	White=1     	---        Mistake:       	White=1     	Black=2      Inaccurate:     	White=4     	Black=2      OK:         	White=7     	Black=5      Best:        	White=1     	Black=3      Strong:       	White=2     	Black=2} 0-1

[Event "Karel Janecek Open 2024"]
[Site "Prague"]
[Date "2024.02.29"]
[Round "2.2"]
[White "Sethuraman, S.P."]
[Black "Welling, Gerard"]
[Result "1-0"]
[ECO "E62"]
[WhiteElo "2594"]
[BlackElo "2224"]
[Annotator "TA"]
[PlyCount "53"]
[EventDate "2024.02.22"]
[EventType "swiss"]
[EventCountry "CZE"]
[SourceTitle "playchess.com"]
[Source "ChessBase"]
[SourceQuality "1"]
[TimeControl "40/5400+30:1800+30"]

{[%evp 14,53,13,8,42,51,60,53,50,46,57,82,73,58,109,116,112,119,212,212,232,216,241,217,211,226,242,212,234,240,204,175,164,170,173,149,253,262,348,333,410,397]} 1. d4 {[%emt 0:00:16]} Nf6 {[%emt 0:00:07]} 2. c4 {[%emt 0:00:09]} Nc6 {[%emt 0:00:05]} 3. Nf3 {[%emt 0:01:28]} e6 {[%emt 0:00:05][%cal Be7e6,Be6e5][%mdl 32]} 4. a3 {[%emt 0:02:43]} d6 {[%emt 0:00:07]} 5. Nc3 {[%emt 0:00:05]} g6 {[%emt 0:00:05]} 6. g3 {[%emt 0:11:03]} Bg7 {[%emt 0:00:12]} 7. Bg2 {[%emt 0:00:04]} O-O {[%emt 0:00:06]} 8. O-O {[%emt 0:00:04]} e5 {[%emt 0:00:15]} 9. d5 {[%emt 0:02:22]} Nb8 {[%emt 0:00:06]} 10. e4 {[%emt 0:01:45]} a5 {[%emt 0:04:30] White is slightly better.} 11. Ne1 {[%emt 0:02:23]} Bd7 {[%emt 0:11:48]} 12. Nd3 {[%emt 0:00:45]} a4 {[%emt 0:02:37]} 13. c5 {[%emt 0:11:26]} Na6 {[%emt 0:02:00]} (13... Ne8 $14) 14. cxd6 $16 {[%emt 0:01:18]} ({Much less strong is} 14. Nxa4 Bxa4 15. Qxa4 Nxc5 $11) 14... cxd6 {[%emt 0:00:03]} 15. Nxa4 {[%emt 0:00:05]} Nxe4 {[%emt 0:02:25]} 16. Bxe4 $18 {[%emt 0:01:38] And now Bg2 would win.} Bxa4 {[%emt 0:00:47]} 17. Qxa4 {[%emt 0:00:06] Qb5 would now be deadly.} Nc5 {[%emt 0:00:08]} 18. Qc4 {[%emt 0:07:54]} b5 {[%emt 0:00:08]} 19. Qb4 {[%emt 0:01:10]} ({But not} 19. Qxb5 $6 Nxe4 20. Nb4 Nf6 $16) 19... Ra4 {[%emt 0:01:22][%cal Ba8a4,Ba4e4,Be4d4,Bd4d5][%mdl 32] [#]} 20. Qxb5 {[%emt 0:00:07]} Rxe4 {[%emt 0:00:06]} 21. Nxc5 {[%emt 0:03:32]} dxc5 {[%emt 0:00:04]} 22. Qxc5 {[%emt 0:00:54] Be3 is the strong threat.} Rd4 {[%emt 0:00:04]} 23. Be3 {[%emt 0:00:37]} Rxd5 {[%emt 0:00:07]} 24. Qc4 {[%emt 0:00:18]} Kh8 {[%emt 0:02:59]} (24... e4 $16 {is a better defense.} 25. Rab1 (25. Qxe4 Bxb2 26. Ra2 Bd4 $16) 25... Qd7 26. Qxe4 Rb8) 25. a4 {[%emt 0:02:24][%cal Ba3a4,Ba4a5][%mdl 32]} f5 {[%emt 0:01:44]} 26. Bc5 {[%emt 0:00:14]} Re8 {[%emt 0:01:03]} 27. a5 {[%emt 0:01:43] Black got outplayed after the opening.   Weighted Error Value: White=0.02 (flawless) /Black=0.31.  Mistake:       	---       	Black=3      Inaccurate:     	---       	Black=1      OK:         	White=11    	Black=3      Best:        	White=4     	Black=4} 1-0